Cogmind - Beta 12 @@@ ROGUE MODE // 2023.10.27 @ 20:30:33 Player: Rainynight Result: Destroyed by G-34 Mercenary with Small Laser Performance ------------- Evolutions (0) 0 Regions Visited (1) 200 Robots Destroyed (6) 30 Value Destroyed (127) 127 Prototype IDs (2) 40 Alien Tech Used (0) 0 Bonus (0) 0 TOTAL SCORE: 397 Bonus ------- None Cogmind --------- Core Integrity 0/250 Matter 300/300 Energy 100/100 System Corruption 0% Temperature Cool (6) Movement Treading (240) Ox1 Location -10/Materials Parts ------- > --- POWER (1) -------- (None) > --- PROPULSION (2) --- Improved Treads Improved Treads > --- UTILITY (2) ------ Huge Storage Unit Signal Interpreter > --- WEAPON (2) ------- Mining Claw Mining Claw > --- INVENTORY (25) --- Light Ion Engine Hover Unit Cooling System Cooling System Cooling System Small Storage Unit Small Matter Pod (50) Medium Matter Pod (57) ECM Suite Propulsion Shielding Utility Shielding Tractor Beam Rocket Launcher Rocket Launcher Rocket Launcher Rocket Launcher Datajack Datajack Peak State ------------ > --- POWER ------------ Ion Engine > --- PROPULSION ------- Improved Treads Improved Treads > --- UTILITY ---------- Huge Storage Unit Signal Interpreter > --- WEAPON ----------- Mining Claw Mining Claw > --- INVENTORY -------- Light Ion Engine Improved Treads Improved Treads Hover Unit Cooling System Cooling System Cooling System Small Storage Unit Small Matter Pod Medium Matter Pod ECM Suite Propulsion Shielding Utility Shielding Tractor Beam Rocket Launcher Rocket Launcher Rocket Launcher Rocket Launcher Datajack Datajack [Rating: 11] Favorites ----------- Power Light Ion Engine Engine Light Ion Engine Propulsion Improved Treads Treads Improved Treads Hover Unit Hover Unit Flight Unit Flight Unit Utility Huge Storage Unit Storage Huge Storage Unit Processor Signal Interpreter Weapon Mining Claw Energy Gun Small Laser Ballistic Gun Assault Rifle Slashing Weapon Mining Claw Build | -11 -10 ------- Run | Jun Mat Slots Evolved . | . . Power . | . . Propulsion . | . . Utility . | . . Weapon . | . . Parts Attached 18 | 6 12 Power 2 | 1 1 Engine 2 | 1 1 Core . | . . Reactor . | . . Propulsion 9 | 2 7 Treads 6 | 2 4 Leg . | . . Wheel . | . . Hover 1 | . 1 Flight 2 | . 2 Utility 3 | 1 2 Device . | . . Storage 2 | 1 1 Processor 1 | . 1 Hackware . | . . Protection . | . . Artifact . | . . Weapon 4 | 2 2 Energy Gun 1 | 1 . Energy Cannon . | . . Ballistic Gun 1 | 1 . Ballistic Cannon . | . . Launcher . | . . Special Weapon . | . . Impact Weapon . | . . Slashing Weapon 2 | . 2 Piercing Weapon . | . . Special Melee Weapon . | . . Unidentified Prototypes . | . . Parts Lost 3 | . 3 Power 1 | . 1 Propulsion 2 | . 2 Utility . | . . Weapon . | . . Highest Loss Streak 3 | . 3 To Critical Strikes . | . . Average Slot Usage (%) 74 | . 74 Engine 3 | . 3 Treads 25 | . 25 Flight 1 | . 1 Storage 15 | . 15 Processor 7 | . 7 Energy Gun 1 | . 1 Ballistic Gun 1 | . 1 Slashing Weapon 15 | . 15 Naked Turns . | . . Heaviest Build 89 | 11 89 Greatest Support 46 | 40 46 Greatest Overweight (x) 3 | . 3 Average Overweight (x) . | . . Largest Inventory Capacity 25 | 8 25 Average Capacity 19 | 6 20 Most Carried 20 | . 20 Average Carried 13 | . 14 Final Capacity 25 | 8 25 Final Carried 18 | . 18 Class Distribution -------------------- 100% | Mutant Dominant Class ---------------- Mutant | -10/Materials Resources | -11 -10 ----------- Run | Jun Mat Matter Collected 475 | 206 269 Remotely . | . . Salvage Created 153 | . 153 Parts 11 | . 11 Haulers Intercepted . | . . Recyclers Shooed . | . . Parts Field Recycled . | . . Retrieved Matter . | . . Parts Self-Destructed . | . . Prevented . | . . Kills | -11 -10 ------- Run | Jun Mat Combat Hostiles Destroyed 5 | . 5 Melee 5 | . 5 Classes Destroyed 3 | . 3 Operator 1 | . 1 Swarmer 3 | . 3 Grunt 2 | . 2 Best Kill Streak 2 | . 2 Combat Bots Only 2 | . 2 Max Kills in Single Turn 1 | . 1 Gunslinging . | . . Exploded . | . . Melee 1 | . 1 Uniques/NPCs Destroyed . | . . Combat | -11 -10 -------- Run | Jun Mat Damage Taken 816 | . 816 Core 256 | . 256 Absorbed by Shields . | . . Core Remaining (%) 100 | 100 . Volleys Fired 1 | . 1 Largest 2 | . 2 Hottest 60 | . 60 Shots Fired 2 | . 2 Gun 2 | . 2 Cannon . | . . Launcher . | . . Special . | . . Kinetic 1 | . 1 Thermal 1 | . 1 Explosive . | . . Electromagnetic . | . . Robot Hit Streak 2 | . 2 Robot Miss Streak . | . . Penetration Max . | . . Secondary Targets . | . . Shots Hit Robots 14 | . 14 Core Hits 7 | . 7 Critical Kills . | . . Critical Parts Destroyed . | . . Critical Strikes . | . . Melee Attacks 27 | . 27 Impact . | . . Slashing 27 | . 27 Piercing . | . . Sneak Attacks 1 | . 1 Combat Hostiles . | . . Follow-up Attacks 3 | . 3 Damage Inflicted 328 | . 328 Guns 25 | . 25 Cannons . | . . Explosions . | . . Melee 303 | . 303 Ramming . | . . Kinetic 15 | . 15 Thermal 10 | . 10 Explosive . | . . Electromagnetic . | . . Impact . | . . Slashing 303 | . 303 Piercing . | . . Highest Corruption . | . . Average Corruption . | . . Corruption Purged . | . . Corruption Blocked . | . . Overload Shots . | . . Overflow Damage . | . . Projectiles . | . . Explosions . | . . Melee . | . . Knockbacks . | . . Impact . | . . Kinetic . | . . Secondary . | . . Self-Inflicted Damage . | . . Shots . | . . Rammed . | . . Targets Rammed . | . . Kicked . | . . Crushed . | . . Highest Temperature . | . . Average Temperature . | . . Received Heat Transfer 309 | . 309 Siege Activations . | . . Robots Corrupted . | . . Combat Hostiles . | . . Parts Fried . | . . Impact Corruptions . | . . Robots Melted . | . . Combat Hostiles . | . . Parts Melted 1 | . 1 Heat Transferred 25 | . 25 Parts Sabotaged . | . . Parts Stolen . | . . Parts Stripped . | . . Power Chain Reactions . | . . Missiles Intercepted . | . . Alert | -11 -10 ------- Run | Jun Mat Peak Influence 120 | . 120 Initial . | . . Average 39 | . 43 Maximum Alert Level . | . . Low Security (%) 100 | 100 100 Level 1 . | . . Level 2 . | . . Level 3 . | . . Level 4 . | . . Level 5 . | . . High Security . | . . Max Security . | . . Squads Dispatched 2 | . 2 Investigation 1 | . 1 Extermination . | . . Reinforcement 1 | . 1 Assault . | . . Garrison . | . . Intercept . | . . Searches Triggered . | . . Construction Impeded . | . . Haulers Reinforced . | . . Active Scanning Responses . | . . Cargo Convoy Interrupts . | . . Stealth | -11 -10 --------- Run | Jun Mat Distress Signals 2 | . 2 Communications Jammed . | . . Distress Signals . | . . Times Spotted 8 | . 8 Peak Tracking Total 5 | . 5 Tactical Retreats 2 | . 2 Traps | -11 -10 ------- Run | Jun Mat Traps Triggered . | . . Indirectly . | . . Trap Hack Attempts . | . . Triggered . | . . Disarmed . | . . Reprogrammed . | . . Reused . | . . Traps Extracted . | . . Installed . | . . Triggered . | . . Machines | -11 -10 ---------- Run | Jun Mat Machines Disabled . | . . Max in Single Turn . | . . Machines Repaired . | . . Machines Sabotaged . | . . Overloaded Fab Kills . | . . Hacking | -11 -10 --------- Run | Jun Mat Machines Accessed 5 | . 5 Terminals 3 | . 3 Fabricators . | . . Repair Stations . | . . Recycling Units 2 | . 2 Scanalyzers . | . . Garrison Access . | . . Total Hacks 12 | . 12 Successful 4 | . 4 Failed 8 | . 8 Catastrophic 1 | . 1 Database Lockouts . | . . Manual 7 | . 7 Terminals 7 | . 7 Fabricators . | . . Repair Stations . | . . Recycling Units 5 | . 5 Scanalyzers . | . . Garrison Access . | . . Terminal Hacks 3 | . 3 Prototype ID Bank 1 | . 1 Recall Investigation 1 | . 1 Zone Layout 1 | . 1 Fabricator Hacks . | . . Repair Station Hacks . | . . Recycling Unit Hacks . | . . Scanalyzer . | . . Garrison Access Hacks . | . . Unauthorized Hacks 1 | . 1 Terminals . | . . Fabricators . | . . Repair Stations . | . . Recycling Units 1 | . 1 Tunnel 1 | . 1 Scanalyzers . | . . Garrison Access . | . . Data Cores Recovered 1 | . 1 Used . | . . Hacking Detections 4 | . 4 Full Trace Events 1 | . 1 Feedback Events . | . . Feedback Blocked . | . . Robot Schematics Acquired . | . . Robots Built . | . . Authchips . | . . Time . | . . Total Robot Build Rating . | . . Part Schematics Acquired . | . . Parts Built . | . . Authchips . | . . Time . | . . Total Part Build Rating . | . . Parts Repaired . | . . Time . | . . Parts Recycled . | . . Recycled Matter . | . . Retrieved Matter . | . . Retrieved Components . | . . Parts Scanalyzed . | . . Part Schematics Acquired . | . . Parts Damaged . | . . Bothacking | -11 -10 ------------ Run | Jun Mat Used RIF Installer . | . . Robots Hacked . | . . Non-combat . | . . Combat . | . . Robot Hacks Applied . | . . Relay Couplers Released . | . . Fabnet Peak Effective % . | . . Robots Rewired . | . . Allies Hacked . | . . Hacks Repelled . | . . Allies | -11 -10 -------- Run | Jun Mat Total Allies . | . . Largest Group . | . . Highest-Rated Group . | . . Highest-Rated Ally . | . . Total Orders . | . . Ally Attacks . | . . Total Damage . | . . Kills . | . . Allies Corrupted . | . . Allies Melted . | . . Intel | -11 -10 ------- Run | Jun Mat Robot Analysis Total . | . . Derelict Logs Recovered . | . . Drone Launches . | . . Drone Recoveries . | . . Exploration | -11 -10 ------------- Run | Jun Mat Turns Passed 756 | 62 694 Spaces Moved 372 | 37 335 Core 6 | 5 1 Treads 282 | 32 250 Legs . | . . Wheels . | . . Hover 7 | . 7 Flight 77 | . 77 Fastest Speed 37 | 50 37 Average Speed 169 | 145 172 Slowest Speed 400 | 160 400 Overloaded Moves . | . . Propulsion Burnouts . | . . Robots Hopped . | . . Cave-ins Triggered . | . . Exploration Rate (%) 18 | 3 33 Regions Visited 1 Branch Regions . Pre-discovered Areas 1 | . 1 Known Exits Taken . | . . Unknown Exits Taken 1 | 1 . Scrap Searched . | . . Spaces Dug . | . . Terrain Destroyed . | . . Melee . | . . Projectile . | . . AOE . | . . Terrain Rammed . | . . Walls Destroyed . | . . Machines Disabled . | . . Actions | -11 -10 --------- Run | Jun Mat Total 444 | 42 402 Wait . | . . Move 371 | 36 335 Hop . | . . Pick Up 20 | . 20 Fast Attach 15 | 6 9 Attach 2 | . 2 Detach 3 | . 3 Swap 1 | . 1 Drop 8 | . 8 Fire 1 | . 1 Melee 23 | . 23 Ram . | . . Kick . | . . Crush . | . . Escape Stasis . | . . Rewire . | . . Trap . | . . Miscellaneous . | . . Route ------- -11/Junkyard -10/Materials (discovered 1 exit: [*Min]) History --------- Turn | Location | Event 2 | -11/Junkyard | Met Revision 17 32 | -11/Junkyard | Discovered new exit (range 16) 63 | -11/Junkyard | Entered Materials 309 | -10/Materials | Build established: Mutant 471 | -10/Materials | Discovered new exit (range 6) 629 | -10/Materials | Core integrity fell below 50% 722 | -10/Materials | Core integrity fell below 20% 752 | -10/Materials | Lost 3 parts (1p2n) 757 | -10/Materials | Destroyed by G-34 Mercenary with Small Laser Last Messages --------------- 00699_ U-05 Engineer lays Concrete. 00701_ S-10 Pest destroyed. 00702_ U-05 Engineer lays Concrete. 00702_ K-01 Serf collects debris. 00704_ Acquired 16 matter. 00706_ K-01 Serf collects debris. 00706_ U-05 Engineer lays Concrete. 00710_ K-01 Serf collects debris. 00712_ Mining Claw follow-up attack on S-10 Pest. 00712_ Ion Engine destroyed. 00714_ K-01 Serf collects debris. 00718_ S-10 Pest destroyed. 00719_ K-01 Serf collects debris. 00720_ Imp. Treads destroyed. 00722_ K-01 Serf collects debris. 00741_ Mining Claw follow-up attack on S-10 Pest. 00741_ S-10 Pest destroyed. 00742_ K-01 Serf collects debris. 00752_ Acquired 43 matter. 00753_ R-06 Scavenger collects Aluminum Leg. Map ----- +----------------------------------------------------+ | ?????????# #??????????????????????? | | ?????????# #??????????????????????? | | ??????????# #???????????????????????? | | ???????????# #????????????????????????? | | ??????###### #????????????????????????? | | ####### #??##????????????????????? | | # + #? ####?????????????????? | | # # """ #? #?????????????????? | | # !!! # """ # #?????????????????? | | #^!!! # """ # #?????????????????? | | # !! # """ #?????????????????? | | # + k # #?????????????????? | | # # ########?????????????????? | | # ## #??????????????????? | | #^ ## #########??????????? | | # " " ## ???? | | # "Y" ## #########??????????? | | # """ ## #??????????????????? | | ######## #??????????????????? | | ??# ## r #??????????????????? | | ??# = #??????????????????? | | ??# u!#??????????????????? | | ??# ! ###??????????????????? | | ??# ### #????????????????????? | | ??# #?# =%g #????????????????????? | | ??#####?# !@ #????????????????????? | | ????????# #????????????????????? | | ????????# k*= #????????????????????? | | ????????# ! = *#????????????????????? | | ????????# =!=% %#????????????????????? | | ????????# * #????????????????????? | | ????????# % #######??????????????? | | ????????# * # "T" #??????????????? | | ????????# =t= # #??????????????? | | ????????# [ # #??# ????????? | | ????????#"" #! """#??####????????? | | ????????#"Y // # """#?????#????????? | | ????????#"" # """#?????#????????? | | ????????# + #?????#????????? | | ????????# # """#?????#????????? | | ????????# ##+### """#?????#????????? | | ????????## ## ## """#?????#????????? | | ?????????# ## ## #?????#????????? | | ?????????# ## "# #######????????? | | ?????????# ## ! T####### #????????? | | ?????????# ## "#?????# " #????????? | | ?????????# ## ##?????#""" #????????? | | ?????????# ## #??????#"" #????????? | | ?????????# ######??????#""" #????????? | | ?????????# ##"T"###????# "" +????????? | +----------------------------------------------------+ Best States ------------- Heat Dissipation 25 Energy Generation 10 Energy Capacity 250 Matter Stores 300 Matter Capacity 300 Sight Range 16 Terrain Scan Density 10 Evasion (%) 62 Recoil Reduction 2 Item Schematics ----------------- None Robot Schematics ------------------ None Fabricated ------------ Nothing Alien Tech Used ----------------- None Achievements -------------- None Challenges ------------ None Game ------ Seed SwarmHugeTreads Manual? 0 Play Time 00:08:58 Cumulative 291.0 hours Start 2023.10.27 @ 20:25:24 End 2023.10.27 @ 20:30:33 Sessions 1 Manual Loads 0 Difficulty Rogue Special Mode None Game No. 326 Rogue 299 Adventurer 2 Explorer 25 Win Type - Total 19 Types 16/1/0/2/0/0/0/0/0 Lore% 75 Gallery% 80 Achievement% 78 Wizard Run 0 Options --------- ASCII 1 Keyboard 1 Movement Numpad Keybinds 1 Fullscreen 1 Font 18/X11 Map View 76x50 Tactical HUD 1 Map Filters NONE Filters NONE Steam 1 RUN: cf98fc78-3d9d-4fe2-8f3c-c1f92e7e12d6